[Event "CZE-tht Extraliga 2018-19"]
[Site "Czech Republic"]
[Date "2019.04.20"]
[Round "10.8"]
[White "Miturova, Magdalena"]
[Black "Pychova, Nela"]
[Result "1/2-1/2"]
[ECO "B11"]
[WhiteElo "2230"]
[BlackElo "2165"]
[Annotator "NA"]
[PlyCount "69"]
[EventDate "2018.11.03"]
[EventType "team-tourn"]
[EventCountry "CZE"]
[SourceTitle "playchess.com"]
[Source "ChessBase"]
[SourceQuality "1"]
[WhiteTeam "Cesky Tesin"]
[BlackTeam "Brno"]
[TimeControl "40/5400+30:1800+30"]

1. e4 {[%emt 0:00:00]} c6 {[%emt 0:00:00]} 2. Nf3 {[%emt 0:04:23]} d5 {[%emt 0:00:04]} 3. Nc3 {[%emt 0:00:07]} Bg4 {[%emt 0:01:34]} 4. h3 {[%emt 0:00:18]} Bxf3 {[%emt 0:01:10]} 5. Qxf3 {[%emt 0:00:08]} e6 {[%emt 0:00:43]} 6. d4 {[%emt 0:07:30]} dxe4 {[%emt 0:06:55]} 7. Nxe4 {[%emt 0:00:43]} Qxd4 {[%emt 0:09:14]} 8. Bd3 {[%emt 0:02:18]} Nf6 {[%emt 0:11:36]} 9. Be3 {[%emt 0:07:12]} Qd8 {[%emt 0:03:04]} 10. O-O-O {[%emt 0:08:20]} Nbd7 {[%emt 0:03:17]} 11. Qg3 {[%emt 0:09:02]} Qa5 {[%emt 0:05:42]} 12. Nxf6+ {[%emt 0:11:19]} Nxf6 {[%emt 0:04:22]} 13. Bc4 {[%emt 0:05:45]} Nd5 {[%emt 0:10:02]} 14. Rd3 {[%emt 0:12:08]} O-O-O {[%emt 0:11:13]} 15. Rhd1 {[%emt 0:03:51]} Rg8 {[%emt 0:06:53]} 16. Qf3 {[%emt 0:10:19]} f5 {[%emt 0:05:11]} 17. Bg5 {[%emt 0:02:37]} Re8 {[%emt 0:06:44]} 18. Bd2 {[%emt 0:09:53]} Bb4 {[%emt 0:06:24]} 19. Bxd5 {[%emt 0:01:39]} cxd5 {[%emt 0:01:39]} 20. Qf4 {[%emt 0:01:26]} Bxd2+ {[%emt 0:00:59]} 21. R1xd2 {[%emt 0:00:04]} Re7 {[%emt 0:03:08]} 22. Qd6 {[%emt 0:00:56]} Rge8 {[%emt 0:00:25]} 23. Ra3 {[%emt 0:00:46]} Qb6 {[%emt 0:00:26]} 24. Qe5 {[%emt 0:00:22]} Rc7 {[%emt 0:00:37]} 25. Rxd5 {[%emt 0:00:40]} Qxf2 {[%emt 0:00:34]} 26. Rc3 {[%emt 0:00:31]} Rxc3 {[%emt 0:00:29]} 27. Qxc3+ {[%emt 0:00:24]} Kb8 {[%emt 0:00:02]} 28. Rd1 {[%emt 0:00:45]} Qf4+ {[%emt 0:00:46]} 29. Kb1 {[%emt 0:00:11]} e5 {[%emt 0:00:45]} 30. Qc5 {[%emt 0:00:44]} e4 {[%emt 0:00:18]} 31. Qb5 {[%emt 0:00:18]} Rc8 {[%emt 0:00:40]} 32. Rd7 {[%emt 0:00:09]} Rc7 {[%emt 0:00:28]} 33. Rd8+ {[%emt 0:00:06]} Rc8 {[%emt 0:00:04]} 34. Rd7 {[%emt 0:00:11]} Rc7 {[%emt 0:00:54]} 35. Rd8+ {[%emt 0:00:06]} 1/2-1/2

[Event "CZE-tht Extraliga 2018-19"]
[Site "Czech Republic"]
[Date "2019.04.20"]
[Round "10.8"]
[White "Novosadova, Kristyna"]
[Black "Vyskocil, Neklan"]
[Result "0-1"]
[ECO "B06"]
[WhiteElo "2225"]
[BlackElo "2286"]
[Annotator "NA"]
[PlyCount "56"]
[EventDate "2018.11.03"]
[EventType "team-tourn"]
[EventCountry "CZE"]
[SourceTitle "playchess.com"]
[Source "ChessBase"]
[SourceQuality "1"]
[WhiteTeam "Beskydska"]
[BlackTeam "Duras"]
[TimeControl "40/5400+30:1800+30"]

1. e4 {[%emt 0:00:00]} g6 {[%emt 0:00:00]} 2. d4 {[%emt 0:00:00]} Bg7 {[%emt 0:00:01]} 3. Nf3 {[%emt 0:00:35]} d6 {[%emt 0:00:10]} 4. c3 {[%emt 0:00:25]} Nf6 {[%emt 0:00:26]} 5. Bd3 {[%emt 0:00:10]} O-O {[%emt 0:00:58]} 6. O-O {[%emt 0:00:09]} Nbd7 {[%emt 0:00:45]} 7. h3 {[%emt 0:04:08]} e5 {[%emt 0:00:14]} 8. d5 {[%emt 0:02:31]} Nc5 {[%emt 0:01:39]} 9. b4 {[%emt 0:07:53]} Nxd3 {[%emt 0:01:11]} 10. Qxd3 {[%emt 0:00:07]} Nh5 {[%emt 0:01:01]} 11. g4 {[%emt 0:10:32]} Nf4 {[%emt 0:01:56]} 12. Bxf4 {[%emt 0:00:05]} exf4 {[%emt 0:00:02]} 13. Kh2 {[%emt 0:01:37]} h6 {[%emt 0:03:22]} 14. Rg1 {[%emt 0:02:56]} c6 {[%emt 0:15:49]} 15. Nbd2 {[%emt 0:02:16]} a5 {[%emt 0:03:36]} 16. a3 {[%emt 0:06:18]} Qc7 {[%emt 0:10:24]} 17. Nd4 {[%emt 0:05:47]} Bd7 {[%emt 0:04:33]} 18. Rac1 {[%emt 0:11:06]} Rfc8 {[%emt 0:10:14]} 19. N2f3 {[%emt 0:03:31]} cxd5 {[%emt 0:03:21]} 20. exd5 {[%emt 0:00:52]} Qc4 {[%emt 0:05:01]} 21. Qe4 {[%emt 0:03:02]} Re8 {[%emt 0:01:24]} 22. Nd2 {[%emt 0:11:11]} Qa2 {[%emt 0:06:13]} 23. Rc2 {[%emt 0:12:09]} Qxa3 {[%emt 0:04:46]} 24. Ne6 {[%emt 0:02:11]} axb4 {[%emt 0:05:09]} 25. cxb4 {[%emt 0:04:47]} fxe6 {[%emt 0:05:20]} 26. Qxg6 {[%emt 0:00:27]} exd5 {[%emt 0:01:46]} 27. Rc7 {[%emt 0:00:41]} Re2 {[%emt 0:04:19]} 28. Rg2 {[%emt 0:02:40]} Rxf2 {[%emt 0:01:56]} 0-1

[Event "CZE-tht Extraliga 2018-19"]
[Site "Czech Republic"]
[Date "2019.04.20"]
[Round "10.8"]
[White "Kozak, Milos"]
[Black "Koziol, Kamil"]
[Result "0-1"]
[ECO "E04"]
[WhiteElo "2174"]
[BlackElo "2280"]
[Annotator "NA"]
[PlyCount "70"]
[EventDate "2018.11.03"]
[EventType "team-tourn"]
[EventCountry "CZE"]
[SourceTitle "playchess.com"]
[Source "ChessBase"]
[SourceQuality "1"]
[WhiteTeam "Siesta B"]
[BlackTeam "Ostrava"]
[TimeControl "40/5400+30:1800+30"]

1. d4 {[%emt 0:00:00]} Nf6 {[%emt 0:00:00]} 2. c4 {[%emt 0:00:00]} e6 {[%emt 0:00:00]} 3. g3 {[%emt 0:00:00]} d5 {[%emt 0:00:18]} 4. Nf3 {[%emt 0:00:00]} dxc4 {[%emt 0:00:54]} 5. Bg2 {[%emt 0:00:00]} Bb4+ {[%emt 0:00:25]} 6. Bd2 {[%emt 0:00:19]} a5 {[%emt 0:00:19]} 7. a3 {[%emt 0:10:27]} Bxd2+ {[%emt 0:04:51]} 8. Nbxd2 {[%emt 0:00:28]} b5 {[%emt 0:01:19]} 9. a4 {[%emt 0:07:12]} c6 {[%emt 0:01:15]} 10. axb5 {[%emt 0:04:04]} cxb5 {[%emt 0:02:41]} 11. Ne5 {[%emt 0:00:34]} Ra7 {[%emt 0:18:21]} 12. e3 {[%emt 0:04:37]} Qb6 {[%emt 0:10:33]} 13. Qc2 {[%emt 0:08:54]} Bb7 {[%emt 0:06:15]} 14. Bxb7 {[%emt 0:03:21]} Qxb7 {[%emt 0:00:24]} 15. O-O {[%emt 0:00:19]} a4 {[%emt 0:12:36]} 16. f4 {[%emt 0:00:32]} Nc6 {[%emt 0:04:23]} 17. Rae1 {[%emt 0:07:06]} O-O {[%emt 0:07:14]} 18. Nxc6 {[%emt 0:04:31]} Qxc6 {[%emt 0:00:06]} 19. e4 {[%emt 0:00:40]} Rc8 {[%emt 0:05:32]} 20. e5 {[%emt 0:08:55]} Nd5 {[%emt 0:01:16]} 21. Ne4 {[%emt 0:00:28]} Nb4 {[%emt 0:01:30]} 22. Qe2 {[%emt 0:01:10]} Qd5 {[%emt 0:01:29]} 23. Qg4 {[%emt 0:02:43]} Qxd4+ {[%emt 0:02:14]} 24. Kg2 {[%emt 0:00:42]} Nc2 {[%emt 0:03:18]} 25. Nf6+ {[%emt 0:03:01]} Kh8 {[%emt 0:00:44]} 26. Qh4 {[%emt 0:00:19]} gxf6 {[%emt 0:01:13]} 27. Qxf6+ {[%emt 0:02:12]} Kg8 {[%emt 0:00:02]} 28. Re2 {[%emt 0:03:15]} Ne3+ {[%emt 0:01:08]} 29. Rxe3 {[%emt 0:00:09]} Qxe3 {[%emt 0:00:07]} 30. f5 {[%emt 0:02:39]} Qd2+ {[%emt 0:08:51]} 31. Kh3 {[%emt 0:03:14]} Qd8 {[%emt 0:01:31]} 32. Qh6 {[%emt 0:00:38]} Qf8 {[%emt 0:03:47]} 33. Qe3 {[%emt 0:00:13]} Rac7 {[%emt 0:00:05]} 34. f6 {[%emt 0:03:39]} c3 {[%emt 0:00:08]} 35. Rf4 {[%emt 0:03:46]} Rc4 {[%emt 0:01:08]} 0-1

[Event "CZE-tht Extraliga 2018-19"]
[Site "Czech Republic"]
[Date "2019.04.21"]
[Round "11.1"]
[White "Azarov, Sergei"]
[Black "Balogh, Csaba"]
[Result "1/2-1/2"]
[ECO "C67"]
[WhiteElo "2595"]
[BlackElo "2610"]
[Annotator "ChessBase"]
[PlyCount "69"]
[EventDate "2018.11.03"]
[EventType "team-tourn"]
[EventCountry "CZE"]
[SourceTitle "playchess.com"]
[Source "ChessBase"]
[SourceQuality "1"]
[WhiteTeam "Beskydska"]
[BlackTeam "Brno"]
[TimeControl "40/5400+30:1800+30"]

1. e4 {[%emt 0:00:00]} e5 {[%emt 0:00:00]} 2. Nf3 {[%emt 0:00:00]} Nc6 {[%emt 0:00:00]} 3. Bb5 {[%emt 0:00:00]} Nf6 {[%emt 0:00:00]} 4. O-O {[%emt 0:00:13]} Nxe4 {[%emt 0:00:05]} 5. Re1 {[%emt 0:00:34]} Nd6 {[%emt 0:00:05]} 6. Nxe5 {[%emt 0:00:25]} Be7 {[%emt 0:00:05]} 7. Bf1 {[%emt 0:00:27]} O-O {[%emt 0:01:46]} 8. d4 {[%emt 0:01:17]} Nf5 {[%emt 0:00:13]} 9. Nf3 {[%emt 0:00:27]} d5 {[%emt 0:00:06]} 10. c3 {[%emt 0:00:41]} Bd6 {[%emt 0:00:28]} 11. Nbd2 {[%emt 0:09:14]} Re8 {[%emt 0:01:22]} 12. Rxe8+ {[%emt 0:00:36]} Qxe8 {[%emt 0:00:08]} 13. Bd3 {[%emt 0:01:04]} Nfe7 {[%emt 0:13:18]} 14. Nf1 {[%emt 0:13:15]} Ng6 {[%emt 0:03:18]} 15. Ng3 {[%emt 0:15:56]} Nce7 {[%emt 0:00:30]} 16. Qc2 {[%emt 0:02:15]} Bg4 {[%emt 0:03:31]} 17. Ne5 {[%emt 0:05:34]} Nxe5 {[%emt 0:05:00]} 18. dxe5 {[%emt 0:00:57]} Bxe5 {[%emt 0:00:04]} 19. Bxh7+ {[%emt 0:00:20]} Kh8 {[%emt 0:00:04]} 20. Bd3 {[%emt 0:01:03]} Bd6 {[%emt 0:15:52]} 21. Bd2 {[%emt 0:05:29]} Qd7 {[%emt 0:02:21]} 22. Re1 {[%emt 0:02:27]} Re8 {[%emt 0:02:16]} 23. h3 {[%emt 0:04:31]} Bxg3 {[%emt 0:04:37]} 24. fxg3 {[%emt 0:05:24]} Bh5 {[%emt 0:00:48]} 25. Qb3 {[%emt 0:07:53]} b6 {[%emt 0:03:11]} 26. g4 {[%emt 0:11:50]} Bg6 {[%emt 0:00:05]} 27. Bxg6 {[%emt 0:00:56]} Nxg6 {[%emt 0:01:08]} 28. Rxe8+ {[%emt 0:01:49]} Qxe8 {[%emt 0:00:03]} 29. Qxd5 {[%emt 0:00:13]} Qe2 {[%emt 0:00:04]} 30. Qg5 {[%emt 0:02:34]} Qd3 {[%emt 0:05:31]} 31. Kh2 {[%emt 0:02:42]} Qd6+ {[%emt 0:00:04]} 32. Kh1 {[%emt 0:00:30]} Qd3 {[%emt 0:00:05]} 33. Kh2 {[%emt 0:01:59]} Qd6+ {[%emt 0:00:04]} 34. Kh1 {[%emt 0:00:04]} Qd3 {[%emt 0:00:03]} 35. Kh2 {[%emt 0:02:03]} 1/2-1/2

[Event "CZE-tht Extraliga 2018-19"]
[Site "Czech Republic"]
[Date "2019.04.21"]
[Round "11.1"]
[White "Molenda, Marcin"]
[Black "Sadzikowski, Daniel"]
[Result "1/2-1/2"]
[ECO "E10"]
[WhiteElo "2383"]
[BlackElo "2523"]
[Annotator "ChessBase"]
[PlyCount "28"]
[EventDate "2018.11.03"]
[EventType "team-tourn"]
[EventCountry "CZE"]
[SourceTitle "playchess.com"]
[Source "ChessBase"]
[SourceQuality "1"]
[WhiteTeam "Cesky Tesin"]
[BlackTeam "Duras"]
[TimeControl "40/5400+30:1800+30"]

1. d4 Nf6 2. c4 e6 3. Nf3 d5 4. g3 Bb4+ 5. Bd2 Be7 6. Bg2 O-O 7. O-O Nbd7 8. Qc2 c6 9. b3 Ne4 10. Bc1 a5 11. Ba3 Bxa3 12. Nxa3 Qe7 13. Nb1 a4 14. Nc3 Nxc3 1/2-1/2

[Event "CZE-tht Extraliga 2018-19"]
[Site "Czech Republic"]
[Date "2019.04.21"]
[Round "11.1"]
[White "Vavra, Pavel"]
[Black "Kempinski, Robert"]
[Result "0-1"]
[ECO "A45"]
[WhiteElo "2359"]
[BlackElo "2575"]
[Annotator "ChessBase"]
[PlyCount "40"]
[EventDate "2018.11.03"]
[EventType "team-tourn"]
[EventCountry "CZE"]
[SourceTitle "playchess.com"]
[Source "ChessBase"]
[SourceQuality "1"]
[WhiteTeam "Siesta B"]
[BlackTeam "Poruba"]
[TimeControl "40/5400+30:1800+30"]

1. d4 {[%emt 0:00:00]} Nf6 {[%emt 0:00:00]} 2. Bg5 {[%emt 0:00:00]} c5 {[%emt 0:00:52]} 3. d5 {[%emt 0:00:00]} g6 {[%emt 0:05:54]} 4. Nc3 {[%emt 0:13:17]} d6 {[%emt 0:00:54]} 5. e4 {[%emt 0:00:19]} Bg7 {[%emt 0:00:15]} 6. Nf3 {[%emt 0:02:00]} h6 {[%emt 0:01:06]} 7. Bf4 {[%emt 0:07:31]} Qa5 {[%emt 0:02:54]} 8. Nd2 {[%emt 0:11:40]} Nh5 {[%emt 0:06:06]} 9. Be3 {[%emt 0:05:16]} Bxc3 {[%emt 0:00:34]} 10. bxc3 {[%emt 0:00:05]} Qxc3 {[%emt 0:00:20]} 11. Be2 {[%emt 0:07:58]} b6 {[%emt 0:01:48]} 12. Rb1 {[%emt 0:02:47]} Ba6 {[%emt 0:03:00]} 13. Rb3 {[%emt 0:09:27]} Bxe2 {[%emt 0:05:31]} 14. Qxe2 {[%emt 0:03:45]} Qxc2 {[%emt 0:06:21]} 15. O-O {[%emt 0:01:45]} Qxa2 {[%emt 0:00:28]} 16. e5 {[%emt 0:07:35]} dxe5 {[%emt 0:06:32]} 17. Bxc5 {[%emt 0:01:09]} bxc5 {[%emt 0:04:32]} 18. Qb5+ {[%emt 0:00:06]} Nd7 {[%emt 0:01:14]} 19. Nc4 {[%emt 0:00:30]} a6 {[%emt 0:03:51]} 20. Qc6 {[%emt 0:00:49]} O-O {[%emt 0:02:41]} 0-1